bitfinex-derivatives/quotes_ETHF0:USTF0_20240904
["timestamp","ask_amount","ask_price","bid_price","bid_amount"]
[1725454392527,0.75903118,2408.0,2407.9,0.97120897]
[1725454393332,0.75903118,2408.0,2407.9,2.00950897]
[1725454394038,0.75903118,2408.0,2407.9,0.97114008]
[1725454394240,0.75903118,2408.0,2407.9,2.00944008]
[1725454394535,0.75903118,2408.0,2407.9,0.97114008]
[1725454394929,0.75903118,2408.0,2407.9,2.00944008]
[1725454396529,0.00623118,2408.0,2407.9,7.07778786]
[1725454396729,0.00623118,2408.0,2407.9,7.46398786]
[1725454397335,0.00623118,2408.0,2407.9,6.08592]
[1725454397540,0.00623118,2408.0,2407.9,7.46391807]
[1725454398632,0.00623118,2408.0,2407.9,6.42561807]
[1725454398833,0.00623118,2408.0,2407.9,5.04762]
[1725454399028,0.00623118,2408.0,2407.9,6.03965702]
[1725454400638,0.00623118,2408.0,2407.9,5.00135702]
[1725454400832,0.42153118,2408.0,2407.9,3.62312]
[1725454401028,4.57433118,2408.0,2407.9,4.17915196]
[1725454401229,4.57433118,2408.0,2407.9,3.62312]
[1725454401436,0.42153118,2408.0,2407.9,3.62312]
[1725454402140,0.42153118,2408.0,2407.9,0.41532]
[1725454402734,0.41535,2407.8,2407.5,0.00623118]
[1725454402933,0.41537,2407.6,2407.5,0.42161118]
[1725454403129,0.41537,2407.6,2407.5,0.9778246]
[1725454403333,0.41537,2407.6,2407.5,0.42161118]
[1725454404734,1.4538,2407.6,2407.5,0.00623118]
[1725454404938,14.86831001,2407.6,2407.5,0.00623118]
[1725454405439,14.86831001,2407.6,2406.9,0.209]
[1725454405440,0.41544,2407.2,2406.9,0.209]
[1725454405647,13.95284315,2407.6,2407.0,0.9718137]
[1725454405648,0.7189,2407.1,2407.0,0.9718137]
[1725454405943,1.12376868,2407.4,2407.3,1.03855]
[1725454406141,3.63e-06,2407.7,2407.6,1.4538]
[1725454406438,0.00623118,2408.0,2407.9,2.49192]
[1725454406635,0.00623118,2408.0,2407.9,15.07917792]
[1725454406835,0.00623118,2408.0,2407.9,21.07917792]
[1725454407447,0.00623118,2408.0,2407.9,18.72252]
[1725454407637,0.00623118,2408.0,2407.9,19.54490419]
[1725454407837,0.00623118,2408.0,2407.9,21.07847019]
[1725454408235,0.00623118,2408.0,2407.9,20.04017019]
[1725454408442,0.00623118,2408.0,2407.9,5.00151609]
[1725454408839,0.00623118,2408.0,2407.9,4.1791319]
[1725454409143,0.38753118,2408.0,2407.9,4.1791319]
[1725454409340,0.80283118,2408.0,2407.9,3.7638119]
[1725454409537,0.80283118,2408.0,2407.8,0.41532]
[1725454409738,0.80283118,2408.0,2407.9,0.55613768]
[1725454410339,0.00623118,2408.0,2407.9,4.17920303]
[1725454410643,0.00623118,2408.0,2407.9,3.62312]
[1725454410847,0.00623118,2408.0,2407.9,4.17912297]
[1725454414054,0.00623118,2408.0,2407.9,3.62312]
[1725454414248,0.00623118,2408.0,2407.9,4.17904395]
[1725454414645,0.38603118,2408.0,2407.9,4.17904395]
[1725454415044,0.38603118,2408.0,2407.9,3.76372395]
[1725454415253,1.03865,2407.1,2406.5,0.209]
[1725454415451,2.87,2406.8,2406.4,3.2078]
[1725454415657,2.87623118,2406.8,2406.2,0.4156]
[1725454415849,3.2078,2406.4,2406.3,0.82332229]
[1725454416046,0.41554,2406.6,2406.0,0.21213971]
[1725454416047,3.28555,2406.6,2406.0,0.62776971]
[1725454416250,2.87,2406.3,2405.9,0.41565]
[1725454416447,6.0778,2406.3,2405.9,0.41565]
[1725454416642,6.0778,2406.3,2405.9,4.57165]
[1725454416951,6.0778,2406.3,2405.9,4.77610424]
[1725454417149,6.0778,2406.3,2405.9,4.36045424]
[1725454417547,6.0778,2406.6,2406.0,4.156]
[1725454417854,0.00623118,2406.8,2406.0,4.156]
[1725454417855,0.00623118,2406.8,2406.7,0.41552]
[1725454418158,2.87,2407.2,2406.8,4.1552]
[1725454418453,2.87,2407.2,2406.3,1.08326979]
[1725454418454,6.0778,2407.2,2406.3,1.03899]
[1725454418654,3.2078,2407.2,2407.0,0.41546]
[1725454418855,2.87,2407.3,2407.1,0.3595]
[1725454419060,3.2078,2407.2,2407.1,0.3595]
[1725454419450,3.2078,2407.2,2407.0,0.00623118]
[1725454419657,2.87,2407.1,2407.0,0.00623118]
[1725454419955,3.62325,2407.2,2407.0,0.00623118]
[1725454420558,3.2078,2407.2,2407.0,0.00623118]
[1725454420764,3.62324,2407.2,2407.0,0.00623118]
[1725454421057,0.41545,2407.1,2407.0,0.00623118]
[1725454421257,0.79775,2407.1,2407.0,0.00623118]
[1725454422160,7.82215,2407.1,2407.0,0.00623118]
[1725454422550,7.82215,2407.1,2406.2,0.7228]
[1725454422551,8.86079,2407.1,2406.2,0.7228]
[1725454422757,8.86079,2407.1,2406.5,0.41556]
[1725454422758,3.2078,2406.6,2406.5,0.41556]
[1725454422954,3.2078,2406.6,2406.2,0.56270539]
[1725454422955,3.2078,2406.6,2406.4,0.41556]
[1725454423253,3.2078,2406.6,2406.3,0.41558]
[1725454423449,3.2078,2406.6,2406.2,0.56270539]
[1725454423651,3.2078,2406.6,2406.5,0.41556]
[1725454424760,3.2078,2406.6,2406.5,4.57076]
[1725454425763,3.2078,2407.0,2406.9,0.41547]
[1725454426057,0.00623118,2407.4,2407.3,0.41542]
[1725454426454,0.00623118,2407.4,2407.3,4.56902]
[1725454426663,0.00623118,2407.4,2407.3,5.60757]
[1725454427159,0.00623118,2407.4,2407.3,4.56902]
[1725454428657,0.00623118,2407.4,2407.3,0.41542]
[1725454429869,0.00623118,2407.4,2407.0,0.3843]
[1725454430078,0.42164118,2407.4,2407.1,0.41544]
[1725454430281,0.41542,2407.3,2407.1,0.41545]
[1725454430478,3.62322,2407.3,2407.0,0.41546]
[1725454430683,3.62323,2407.3,2407.1,0.41545]
[1725454430885,3.62323,2407.3,2407.0,0.41545]
[1725454431977,3.62323,2407.3,2407.1,0.41545]
[1725454432177,3.62323,2407.3,2407.0,0.41546]
[1725454432381,3.62323,2407.3,2406.8,0.3574]
[1725454432382,0.41544,2407.2,2406.9,0.41548]
[1725454432981,0.41545,2407.1,2406.9,0.41548]
[1725454433184,3.2078,2407.3,2406.6,3.5714]
[1725454433379,3.62322,2407.3,2407.1,0.41545]
[1725454433979,3.62322,2407.3,2406.7,1.03879]
[1725454433980,3.62322,2407.3,2407.0,0.41546]
[1725454434291,3.62322,2407.3,2406.6,4.61024]
[1725454434292,0.41547,2407.1,2406.6,1.40244]
[1725454434480,0.41547,2407.1,2406.9,0.41548]
[1725454435087,0.41549,2406.9,2406.7,0.41551]
[1725454435982,0.41549,2406.9,2406.3,4.97996]
[1725454435983,0.3544,2406.9,2406.4,1.03893]
[1725454436183,0.3544,2406.9,2406.8,0.41551]
[1725454436785,0.76989,2406.9,2406.7,0.41551]
[1725454436981,0.3544,2406.9,2406.8,0.41551]
[1725454437584,0.76989,2406.9,2406.8,0.41551]
[1725454437890,0.7699,2406.9,2406.7,0.41551]
[1725454438095,0.3544,2406.9,2406.8,0.41551]
[1725454438286,3.5721,2407.0,2406.9,0.41549]
[1725454441592,3.98757,2407.0,2406.8,0.4155]
[1725454441791,0.41551,2406.8,2406.4,1.03894]
[1725454441984,0.4155,2406.9,2406.7,0.41551]
[1725454442179,0.4155,2406.9,2406.8,0.41551]
[1725454442989,3.5721,2407.0,2406.9,0.41549]
[1725454443186,0.41549,2406.9,2406.8,0.4155]
[1725454443491,0.4155,2406.9,2406.7,0.41551]
[1725454443792,0.80592,2406.8,2406.3,4.61457]
[1725454443990,0.3904,2406.8,2406.7,0.41552]
[1725454444198,3.5721,2407.0,2406.9,0.41549]
[1725454445193,3.5982,2407.3,2406.9,0.41549]
[1725454445390,3.9899,2407.3,2407.2,0.41544]
[1725454445796,3.5995,2407.3,2407.2,0.41544]
[1725454447396,3.5995,2407.3,2407.2,1.45404]
[1725454450803,0.00623118,2407.4,2407.3,1.45397]
[1725454450999,0.00623118,2407.4,2407.3,2.49252]
[1725454454397,0.00623118,2407.4,2407.3,1.45397]
[1725454454908,0.00623118,2407.4,2407.3,0.41542]
[1725454456806,0.00623118,2407.4,2407.3,1.45397]
[1725454461210,0.00623118,2407.4,2407.3,0.41542]
[1725454465615,0.00623118,2407.4,2407.3,2.49252]
[1725454465809,0.00623118,2407.4,2407.3,6.64612]
[1725454466108,0.00623118,2407.4,2407.3,7.00152]
[1725454466304,0.00623118,2407.4,2407.3,7.36332]
[1725454467216,0.00623118,2407.4,2407.3,1.81577]
[1725454467717,0.00623118,2407.4,2407.3,0.41542]
[1725454468910,0.00623118,2407.4,2407.3,1.45397]
[1725454469419,0.00623118,2407.4,2407.3,0.41542]
[1725454470207,0.00623118,2407.4,2407.3,1.45397]
[1725454470515,0.00623118,2407.4,2407.3,5.60757]
[1725454470718,0.00623118,2407.4,2407.3,6.64612]
[1725454471400,0.00623118,2407.4,2407.3,5.60757]
[1725454472703,0.00623118,2407.4,2407.3,6.64612]
[1725454474617,0.00623118,2407.4,2407.3,2.49252]
[1725454475816,0.00623118,2407.4,2407.3,0.41542]
[1725454477814,1.03855,2407.3,2406.8,1.08326979]
[1725454478021,0.41547,2407.1,2406.8,0.4155]
[1725454478316,0.41547,2407.1,2406.5,1.03889]
[1725454478509,4.3199,2407.2,2407.0,0.41547]
[1725454478822,4.3199,2407.2,2407.1,0.41545]
[1725454479214,8.4743,2407.2,2407.1,0.41545]
[1725454479517,8.69545258,2407.2,2407.1,0.41545]
[1725454479913,8.4743,2407.2,2407.1,0.41545]
[1725454480314,8.69545283,2407.2,2407.1,0.41545]
[1725454480514,8.69545283,2407.2,2406.8,3.90876]
[1725454480812,4.3199,2407.2,2407.1,0.41545]
[1725454481316,8.88974,2407.2,2407.0,0.41546]
[1725454481618,4.54105365,2407.2,2407.1,0.41545]
[1725454484316,4.3199,2407.2,2407.1,0.41545]
[1725454484910,3.9397,2407.2,2407.1,0.41545]
[1725454485322,4.1608313,2407.2,2407.1,0.41545]
[1725454486420,3.9397,2407.2,2407.1,0.41545]
[1725454486616,0.7319,2407.2,2407.1,0.41545]
[1725454486820,0.37273118,2407.4,2407.3,0.41542]
[1725454487011,0.59384122,2407.4,2407.3,0.41542]
[1725454487218,3.2078,2407.8,2407.3,13.43902]
[1725454487414,3.90428941,2408.2,2407.3,13.43902]
[1725454487415,3.0168,2408.9,2407.7,5.38746691]
[1725454487722,0.64171342,2408.8,2408.5,3.28521]
[1725454487923,0.22086521,2408.8,2408.3,2.87]
[1725454488219,0.58616521,2408.7,2408.3,2.87]
[1725454488415,3.9436,2408.4,2408.3,2.87623118]
[1725454488618,4.16446521,2408.4,2408.3,2.87623118]
[1725454488813,7.18126521,2408.4,2408.3,2.87623118]
[1725454489017,6.9604,2408.4,2408.3,3.29148118]
[1725454490130,3.9436,2408.4,2408.3,3.29148118]
[1725454491616,0.00623118,2408.8,2408.7,1.45313]
[1725454491821,0.209,2409.4,2409.3,0.41507]
[1725454492023,3.50833001,2409.4,2409.3,0.41507]
[1725454492225,3.2078,2410.1,2409.7,0.415]
[1725454492433,3.2078,2409.8,2409.7,0.415]
[1725454492615,2.73863001,2409.8,2409.7,0.41501]
[1725454492928,4.92685119,2409.8,2409.5,6.08403118]
[1725454493139,2.73863001,2409.6,2409.5,6.49907118]
[1725454493631,4.92685119,2409.6,2409.5,6.49907118]
[1725454494221,4.92685119,2409.6,2409.5,3.29127118]
[1725454494422,4.92685119,2409.6,2409.5,6.49907118]
[1725454498021,4.92685119,2409.6,2409.5,6.08403118]
[1725454498218,4.92685119,2409.6,2409.5,6.49907118]
[1725454498632,4.92685119,2409.6,2409.5,0.00623118]
[1725454500237,0.41505,2409.5,2409.1,3.2851]
[1725454500434,2.73863001,2409.0,2408.9,6.28220316]
[1725454500733,2.73863001,2409.0,2408.9,6.69734316]
[1725454500926,4.92685119,2409.0,2408.9,6.49294]
[1725454502131,2.73863001,2409.0,2408.9,6.49294]
[1725454502326,0.3872,2409.4,2409.2,0.41509]
[1725454502528,2.57542118,2409.4,2409.2,2.87]
[1725454502732,2.73863001,2409.3,2409.2,2.87]
[1725454502934,2.73863001,2409.3,2409.2,3.28509]
[1725454503236,4.92685119,2409.3,2409.2,3.28509]
[1725454506529,2.73863001,2409.3,2409.2,3.28509]
[1725454508645,4.92685119,2409.3,2409.2,3.28509]
[1725454510856,4.92685119,2409.3,2409.2,0.41509]
[1725454511055,4.92685119,2409.3,2409.1,0.4151]
[1725454511260,2.73863001,2409.1,2409.0,3.28513]
[1725454511657,4.92685119,2409.1,2409.0,3.28513]
[1725454512756,4.92685119,2409.1,2409.0,6.49293]
[1725454515652,4.92685119,2409.1,2409.0,3.2078]
[1725454516153,4.92685119,2409.1,2409.0,3.62293]
[1725454516359,4.92685119,2409.1,2409.0,3.2078]
[1725454516552,5.34196119,2409.1,2409.0,3.2078]
[1725454516749,4.92685119,2409.1,2409.0,3.2078]
[1725454516945,4.92685119,2409.1,2409.0,3.62293]
[1725454518260,4.92685119,2409.1,2409.0,3.2078]
[1725454518760,4.92685119,2409.1,2409.0,3.62293]
[1725454519661,4.92685119,2409.1,2409.0,3.2078]
[1725454519951,4.92685119,2409.1,2409.0,3.62293]
[1725454520953,4.92685119,2409.1,2409.0,6.49293]
[1725454521761,0.7713,2409.4,2409.3,0.41507]
[1725454521962,4.92685119,2409.4,2409.3,1.45274]
[1725454523152,4.92685119,2409.4,2409.3,0.41507]
[1725454528356,4.92685119,2409.4,2409.0,3.2078]
[1725454528550,2.73863001,2409.1,2409.0,3.2078]
[1725454528748,3.15374001,2409.1,2409.0,3.2078]
[1725454528950,5.70686119,2409.1,2409.0,3.2078]
[1725454531259,5.29175119,2409.1,2409.0,3.62293]
[1725454531455,5.70686119,2409.1,2409.0,3.2078]
[1725454531857,5.29175119,2409.1,2409.0,3.62293]
[1725454532953,5.70686119,2409.1,2409.0,3.62293]
[1725454533354,5.29175119,2409.1,2409.0,3.62293]
[1725454533556,5.70686119,2409.1,2409.0,3.62293]
[1725454534155,5.70686119,2409.1,2409.0,3.2078]
[1725454534359,1.03782,2409.0,2408.7,0.42140118]
[1725454534668,2.73863001,2408.8,2408.7,0.42140118]
[1725454535159,4.92685119,2408.8,2408.7,0.42140118]
[1725454535358,4.92685119,2408.8,2408.7,1.45935118]
[1725454535564,5.68375119,2408.8,2408.7,1.45935118]
[1725454536165,5.68375119,2408.8,2408.7,0.42140118]
[1725454538867,0.3649,2409.1,2409.0,0.41513]
[1725454539161,3.31802118,2409.1,2409.0,0.41513]
[1725454539363,4.92685119,2409.1,2409.0,1.45295]
[1725454539566,4.117,2409.2,2409.1,1.45289]
[1725454539762,4.117,2409.2,2409.1,7.53069]
[1725454540360,4.117,2409.2,2409.1,6.49291]
[1725454540560,4.117,2409.2,2409.1,7.53069]
[1725454543664,4.117,2409.2,2409.1,6.49291]
[1725454543872,9.04385119,2409.2,2409.1,6.49291]
[1725454544168,4.92685119,2409.2,2409.1,6.49291]
[1725454547372,4.92685119,2409.2,2409.1,0.41511]
[1725454549775,2.73863001,2409.2,2409.1,1.45289]
[1725454550068,0.3715,2409.5,2409.4,0.41506]
[1725454550274,2.55972118,2409.5,2409.4,0.41506]
[1725454550569,5.29835119,2409.5,2409.4,0.41506]
[1725454551167,5.29835119,2409.5,2409.4,4.32271]
[1725454551563,5.29835119,2409.5,2409.4,3.28506]
[1725454553871,4.92685119,2409.5,2409.4,3.28506]
[1725454554062,4.92685119,2409.5,2409.4,7.53051]
[1725454554265,2.73863001,2409.5,2409.4,7.53051]
[1725454556065,2.73863001,2409.5,2409.4,8.56816]
[1725454556270,0.3857,2409.8,2409.7,0.41501]
[1725454556474,0.00623118,2410.0,2409.9,0.41497]
[1725454556671,2.19445236,2410.0,2409.9,0.41497]
[1725454556866,4.93308237,2410.0,2409.9,0.41497]
[1725454559273,4.93308237,2410.0,2409.9,3.28497]
[1725454559981,2.74486119,2410.0,2409.9,3.28497]
[1725454562277,2.74486119,2410.0,2409.9,4.3224]
[1725454562278,0.00623118,2410.0,2409.9,4.3224]
[1725454562468,0.3592,2410.5,2410.4,0.41488]
[1725454562672,4.92685119,2410.5,2410.4,3.28488]
[1725454563370,4.92685119,2410.5,2410.1,2.87]
[1725454563679,2.73863001,2410.2,2410.1,2.87623118]
[1725454563880,2.73863001,2410.2,2410.1,3.29117118]
[1725454564072,4.92685119,2410.2,2410.1,3.29117118]
[1725454568380,4.92685119,2410.2,2410.1,2.87623118]
[1725454568583,4.92685119,2410.2,2410.1,3.29117118]
[1725454570585,4.92685119,2410.2,2410.1,2.87623118]
[1725454570882,5.34177119,2410.2,2410.1,2.87623118]
[1725454571181,5.34177119,2410.2,2410.1,0.00623118]
[1725454571182,6.37908119,2410.2,2410.1,0.00623118]
[1725454571380,0.41495,2410.0,2409.9,2.87]
[1725454571586,3.15358001,2410.0,2409.9,2.87]
[1725454571784,0.41499,2409.9,2409.8,0.41499]
[1725454572084,2.60319118,2410.0,2409.8,0.41499]
[1725454572284,2.73863001,2409.9,2409.8,0.41499]
[1725454572580,2.73863001,2409.9,2409.8,4.32247]
[1725454574986,0.3777,2410.1,2410.0,0.41495]
[1725454575188,3.11633001,2410.1,2410.0,3.28495]
[1725454575983,3.11633001,2410.1,2410.0,1.61495]
[1725454576691,2.73863001,2410.1,2410.0,2.65234]
[1725454578684,2.73863001,2410.1,2410.0,1.61495]
[1725454578885,4.92685119,2410.1,2410.0,0.41495]
[1725454579084,4.92685119,2410.1,2410.0,1.61495]
[1725454580284,4.92685119,2410.1,2410.0,1.2]
[1725454580285,5.34179119,2410.1,2410.0,1.2]
[1725454580482,4.92685119,2410.1,2410.0,1.61495]
[1725454580886,4.92685119,2410.1,2409.9,3.2078]
[1725454581091,1.03743,2409.9,2409.6,3.21403118]
[1725454581291,1.03743,2409.9,2409.6,3.62905118]
[1725454581292,2.73863001,2409.7,2409.6,3.62905118]
[1725454581690,4.92685119,2409.7,2409.6,3.62905118]
[1725454582389,2.73863001,2409.7,2409.6,5.86661118]
[1725454582586,2.73863001,2409.7,2409.6,6.90417118]
[1725454582791,0.3913,2410.0,2409.9,0.41497]
[1725454582994,3.12993001,2410.0,2409.9,1.61497]
[1725454583187,2.73863001,2410.0,2409.9,1.61497]
[1725454583490,2.73863001,2410.0,2409.9,4.82277]
[1725454587991,4.92685119,2410.0,2409.9,4.4078]
[1725454588295,4.92685119,2410.0,2409.9,1.61497]
[1725454588486,4.92685119,2410.0,2409.9,1.2]
[1725454588687,0.41497,2409.9,2409.8,1.2]
[1725454588889,0.3629,2409.9,2409.8,1.2]
[1725454589099,5.28975119,2409.9,2409.8,1.2]
[1725454589306,5.70472119,2409.9,2409.8,1.2]
[1725454589792,5.70472119,2409.9,2409.6,3.62904118]
[1725454589995,2.96609118,2409.9,2409.7,1.615]
[1725454590394,2.73863001,2409.8,2409.7,1.615]
[1725454590797,4.92685119,2409.8,2409.7,1.615]
[1725454591502,5.34184119,2409.8,2409.7,1.2]
[1725454591893,4.92685119,2409.8,2409.7,1.61501]
[1725454593089,5.29495119,2409.8,2409.7,1.61501]
[1725454595300,5.70994119,2409.8,2409.7,1.61501]
[1725454595495,5.29495119,2409.8,2409.7,1.61501]
[1725454597299,2.73863001,2409.8,2409.7,1.61501]
[1725454598698,5.34184119,2409.8,2409.7,1.2]
[1725454599598,0.41501,2409.7,2409.6,0.00623118]
[1725454599796,3.10843001,2409.7,2409.6,0.42125118]
[1725454600008,5.29665119,2409.7,2409.6,0.42125118]
[1725454600206,5.71166119,2409.7,2409.6,0.00623118]
[1725454602406,5.71166119,2409.7,2409.6,0.42125118]
[1725454603009,5.71166119,2409.7,2409.6,0.00623118]
[1725454603201,7.78670119,2409.7,2409.6,0.00623118]
[1725454603402,0.41509,2409.2,2409.1,2.967]
[1725454603603,3.15372001,2409.2,2409.1,3.28511]
[1725454603803,6.08814119,2409.2,2409.1,3.28511]
[1725454604406,5.67305119,2409.2,2409.1,0.41511]
[1725454604604,5.67305119,2409.2,2409.1,3.28511]
[1725454607316,5.67305119,2409.2,2409.1,2.87]
[1725454608315,5.67305119,2409.2,2409.1,3.28511]
[1725454611512,5.67305119,2409.2,2409.1,2.87]
[1725454611714,5.67305119,2409.2,2409.1,3.28511]
[1725454612110,6.08814119,2409.2,2409.1,2.87]
[1725454612311,6.08814119,2409.2,2409.0,0.41511]
[1725454612510,2.73863001,2409.1,2409.0,0.41511]
[1725454612911,4.92685119,2409.1,2409.0,0.41511]
[1725454615715,4.92685119,2409.1,2408.9,6.49294]
[1725454615924,2.73863001,2409.0,2408.9,6.49294]
[1725454616410,4.92685119,2409.0,2408.9,6.49294]
[1725454621516,0.00623118,2409.3,2409.2,0.41509]
[1725454621716,4.93308237,2409.3,2409.2,3.28509]
[1725454621915,4.93308237,2409.3,2409.2,1.61509]
[1725454622922,5.34815237,2409.3,2409.2,1.2]
[1725454623222,4.93308237,2409.3,2409.2,1.2]
[1725454623420,5.34815237,2409.3,2409.2,1.2]
[1725454625818,4.93308237,2409.3,2409.2,1.61509]
[1725454628829,16.75265236,2409.3,2408.5,4.38884059]
[1725454629125,0.41525,2408.3,2408.2,0.209]
[1725454629332,0.41525,2408.3,2408.0,0.41529]
[1725454629333,2.60347118,2408.3,2408.0,0.41529]
[1725454629518,2.60347118,2408.3,2407.9,1.2]
[1725454629519,0.3731,2408.2,2407.9,1.2]
[1725454629724,0.3731,2408.2,2408.1,1.61528]
[1725454629927,4.24577,2408.7,2408.3,0.41523]
[1725454629928,3.2078,2408.7,2408.3,0.41523]
[1725454630222,3.2078,2408.7,2408.1,1.2]
[1725454630223,1.233,2408.6,2408.5,0.41521]
[1725454630534,1.233,2408.6,2408.4,1.61523]
[1725454630731,3.42122118,2408.6,2408.4,0.41523]
[1725454631230,2.95152118,2408.6,2408.4,0.41523]
[1725454631417,2.95152118,2408.6,2408.5,0.41521]
[1725454632331,2.95152118,2408.6,2408.4,1.61522]
[1725454632836,2.95152118,2408.6,2408.5,0.41521]
[1725454634628,2.95152118,2408.6,2408.4,1.61522]
[1725454635733,3.36672118,2408.6,2408.4,1.2]
[1725454635929,2.95152118,2408.6,2408.5,0.41521]
[1725454638830,2.18822118,2408.6,2408.5,0.41521]
[1725454639237,2.18822118,2408.6,2408.5,1.45325]
[1725454639436,0.9486,2408.9,2408.8,0.41516]
[1725454639635,3.13682118,2408.9,2408.8,0.41516]
[1725454642543,1.03791,2408.8,2408.1,0.209]
[1725454642737,1.03791,2408.8,2408.2,1.2]
[1725454642738,0.41524,2408.4,2408.2,1.2]
[1725454643042,1.4118,2408.3,2408.2,1.2]
[1725454643435,3.60002118,2408.3,2408.2,1.61526]
[1725454648242,2.18822118,2408.3,2408.2,1.61526]
[1725454649646,2.18822118,2408.3,2408.2,1.2]
[1725454650440,2.18822118,2408.3,2408.2,1.61526]
[1725454650954,0.41529,2408.1,2407.9,0.4153]
[1725454651251,0.9377,2408.0,2407.9,0.4153]
[1725454651444,1.4232,2408.0,2407.9,0.4153]
[1725454651646,3.61142118,2408.0,2407.9,0.4153]
[1725454652150,3.61142118,2408.0,2407.6,1.2]
[1725454652151,7.85748118,2408.0,2407.6,1.2]
[1725454652345,7.85748118,2408.0,2407.5,7.22039823]
[1725454652346,9.06371236,2408.0,2407.5,7.22039823]
[1725454652544,0.41535,2407.7,2407.5,1.61538]
[1725454652740,0.4671,2407.6,2407.5,1.61538]
[1725454653252,2.65532118,2407.6,2407.5,1.2]
[1725454653443,2.65532118,2407.6,2407.5,1.61538]
[1725454654152,2.65532118,2407.6,2407.5,3.28538]
[1725454654345,3.07069118,2407.6,2407.5,2.87]
[1725454654546,6.80892118,2407.6,2407.1,2.87]
[1725454654749,0.41543,2407.3,2407.1,2.87]
[1725454654949,3.2078,2407.4,2407.0,0.41546]
[1725454654950,0.41544,2407.2,2407.0,0.41546]
[1725454655151,0.41543,2407.3,2407.1,0.41544]
[1725454655651,0.41544,2407.2,2407.1,0.41544]
[1725454655848,2.18822118,2407.3,2406.8,0.4155]
[1725454656043,4.70645,2407.1,2406.8,0.4155]
[1725454656357,0.9331,2407.0,2406.8,0.4155]
[1725454656549,0.41549,2406.9,2406.8,0.4155]
[1725454656857,3.53680118,2407.0,2406.8,0.4155]
[1725454657163,3.53680118,2407.0,2406.9,0.41549]
[1725454657750,3.53680118,2407.0,2406.8,0.41549]
[1725454658055,3.12132118,2407.0,2406.7,3.28551]
[1725454658253,0.4155,2406.9,2406.8,0.4155]
[1725454658761,2.18822118,2406.9,2406.8,0.4155]
[1725454661850,2.18822118,2406.9,2406.7,2.87]
[1725454661851,0.41551,2406.8,2406.7,3.28551]
[1725454662055,0.41552,2406.8,2406.7,0.41552]
[1725454662255,2.60373118,2406.8,2406.7,0.41551]
[1725454666764,3.2078,2407.4,2407.3,1.45397]
[1725454667062,5.39602118,2407.4,2407.3,0.41542]
[1725454669160,15.54962118,2407.4,2406.7,1.03881]
[1725454669362,0.41545,2407.2,2407.0,0.41546]
[1725454669566,1.31115,2407.1,2407.0,0.41546]
[1725454669870,1.78965,2407.1,2407.0,0.41546]
[1725454670077,8.13227118,2407.1,2407.0,0.41546]
[1725454670561,8.13227118,2407.1,2406.9,0.41548]
[1725454670751,0.41547,2407.0,2406.9,0.41548]
[1725454670951,4.1544,2407.0,2406.4,2.00043]
[1725454671157,0.41552,2406.8,2406.4,1.51273]
[1725454671353,0.41552,2406.8,2406.7,0.41552]
[1725454671354,0.41551,2406.8,2406.7,0.41552]
[1725454671565,2.60373118,2406.8,2406.6,0.41553]
[1725454672165,0.41556,2406.5,2406.3,0.41558]
[1725454672466,0.9451,2406.4,2406.3,0.41559]
[1725454672862,3.13332118,2406.4,2406.3,0.41559]
[1725454673253,3.54889118,2406.4,2406.3,0.41559]
[1725454673465,3.13332118,2406.4,2406.3,0.41559]
[1725454673959,2.65002118,2406.4,2406.3,0.41559]
[1725454675970,3.06559118,2406.4,2406.2,0.4156]
[1725454676261,3.06560118,2406.4,2406.2,0.4156]
[1725454676660,3.06560118,2406.4,2406.0,1.03911]
[1725454676661,3.06560118,2406.4,2406.3,0.41559]
[1725454677064,2.65002118,2406.4,2406.3,0.41559]
[1725454678867,0.00623118,2406.6,2406.5,0.41556]
[1725454679073,2.60999236,2406.6,2406.5,0.41556]
[1725454679264,2.19445236,2406.6,2406.5,0.41556]
[1725454680068,2.60999236,2406.6,2406.5,0.41556]
[1725454680762,0.41558,2406.4,2406.3,0.41558]
[1725454680970,0.4156,2406.3,2406.2,0.4156]
[1725454681165,0.41564,2406.1,2406.0,0.41563]
[1725454681367,2.60386118,2406.1,2406.0,0.41563]
[1725454681561,0.41567,2405.9,2405.8,0.41566]
[1725454681967,2.60389118,2405.9,2405.8,0.41566]
[1725454683268,2.18822118,2405.9,2405.8,0.41566]
[1725454683463,2.60388118,2405.9,2405.8,0.41566]
[1725454683859,2.18822118,2405.9,2405.8,0.41566]
[1725454689566,0.41564,2406.1,2405.9,0.41565]
[1725454689768,2.60386118,2406.1,2405.9,0.41565]
[1725454691377,0.41564,2406.0,2405.9,0.41565]
[1725454691773,2.18822118,2406.0,2405.9,0.41565]
[1725454691979,4.117,2406.3,2406.2,0.41561]
[1725454692181,6.72082118,2406.3,2406.0,0.8948]
[1725454692388,6.30522118,2406.3,2406.2,0.41561]
[1725454693072,2.18822118,2406.3,2406.2,0.41561]
[1725454695890,0.9496,2406.5,2406.3,0.41559]
[1725454696090,3.55338118,2406.5,2406.3,0.41559]
[1725454696296,3.21403118,2406.6,2406.4,4.57077]
[1725454696489,2.19445236,2406.6,2406.1,2.87]
[1725454696690,6.44112236,2406.6,2406.1,2.87]
[1725454696896,0.41559,2406.4,2406.1,3.28561]
[1725454697392,2.60381118,2406.4,2406.2,0.41561]
[1725454697594,2.18822118,2406.4,2406.3,0.41559]
[1725454699787,0.00623118,2406.6,2406.3,0.41559]
[1725454699988,2.19445236,2406.6,2406.3,0.41559]
[1725454701095,2.60999236,2406.6,2406.1,2.87]
[1725454701400,2.19445236,2406.6,2406.3,0.41558]
[1725454702297,2.19445236,2406.6,2406.4,0.41557]
[1725454702591,2.19445236,2406.6,2406.3,0.41558]
[1725454702900,2.19445236,2406.6,2406.4,0.41557]
[1725454703704,2.19445236,2406.6,2406.5,0.41556]
[1725454704095,0.00623118,2406.6,2406.5,0.41556]
[1725454704300,0.00623118,2406.6,2406.5,8.38366]
[1725454705401,0.00623118,2406.6,2406.5,10.46146]
[1725454705597,0.00623118,2406.6,2406.5,16.46146]
[1725454705798,0.00623118,2406.6,2406.5,10.46146]